bitfinex-derivatives/quotes_ETHF0:USTF0_20250520
["timestamp","ask_amount","ask_price","bid_price","bid_amount"]
[1747733943407,0.08486477,2536.1,2536.0,3.07543719]
[1747733946615,1.46516477,2536.1,2536.0,3.07543719]
[1747733950115,0.08486477,2536.1,2536.0,3.07543719]
[1747733950326,1.379,2536.6,2536.5,0.78826]
[1747733950516,1.379,2536.6,2536.5,3.99606]
[1747733950713,1.379,2536.6,2536.5,5.96724]
[1747733951213,1.379,2536.6,2536.5,6.2826872]
[1747733951410,2.69435049,2536.6,2536.5,6.2826872]
[1747733951616,4.67410049,2536.6,2536.5,6.2826872]
[1747733952017,5.46233049,2536.6,2536.5,6.2826872]
[1747733952210,8.20233049,2536.6,2536.5,4.3115072]
[1747733952611,10.17351049,2536.6,2536.5,4.3115072]
[1747733952917,10.17351049,2536.6,2536.5,1.1037072]
[1747733953317,9.38528049,2536.6,2536.5,1.1037072]
[1747733954017,10.17351049,2536.6,2536.5,0.3154472]
[1747733954215,9.38528049,2536.6,2536.3,1.45481897]
[1747733954415,1.97975,2536.4,2536.3,1.45481897]
[1747733954812,5.26643549,2536.4,2536.3,1.45481897]
[1747733955014,5.26643549,2536.4,2536.3,1.29051825]
[1747733955716,7.43732549,2536.4,2536.3,1.29051825]
[1747733955920,12.43732549,2536.4,2536.3,0.50221825]
[1747733956114,0.78835,2536.2,2536.1,3.2078]
[1747733956418,2.7681,2536.2,2536.1,3.2078]
[1747733956610,6.05494049,2536.2,2536.1,3.2078]
[1747733957211,5.26659049,2536.2,2536.1,3.99618]
[1747733957416,1.97975,2536.2,2536.1,3.99618]
[1747733957835,3.34285,2536.2,2536.1,5.96767]
[1747733958021,1.3631,2536.2,2536.1,5.96767]
[1747733958430,0.6537,2536.7,2536.6,0.78823]
[1747733958728,0.6537,2536.7,2536.6,3.99603]
[1747733958920,5.91990549,2536.7,2536.6,3.99603]
[1747733959526,3.94880049,2536.7,2536.6,3.99603]
[1747733960123,2.63345,2536.7,2536.6,5.967135]
[1747733960327,2.63345,2536.7,2536.6,3.99603]
[1747733960525,2.63345,2536.7,2536.6,5.967135]
[1747733961327,0.6537,2536.7,2536.6,5.967135]
[1747733961531,1.3733,2536.7,2536.6,5.967135]
[1747733961725,1.3733,2536.7,2536.6,3.99603]
[1747733961933,1.3733,2536.7,2536.6,5.967135]
[1747733962222,1.3733,2536.7,2536.6,6.62773296]
[1747733964521,1.3733,2536.7,2536.6,7.97553296]
[1747733964928,0.00592101,2536.8,2536.7,0.7882]
[1747733965122,1.29732101,2536.8,2536.7,0.7882]
[1747733965331,1.29732101,2536.8,2536.7,2.75922499]
[1747733966534,1.29732101,2536.8,2536.7,3.0744816]
[1747733967031,0.00592101,2536.8,2536.7,3.0744816]
[1747733968534,0.00592101,2536.8,2536.7,3.73507956]
[1747733971429,1.98567101,2536.8,2536.7,3.73507956]
[1747733971836,3.27817101,2536.8,2536.7,3.73507956]
[1747733972039,3.27817101,2536.8,2536.7,3.0744816]
[1747733973028,6.5645465,2536.8,2536.7,1.10345661]
[1747733973225,9.3045465,2536.8,2536.7,1.10345661]
[1747733974347,6.5645465,2536.8,2536.7,1.10345661]
[1747733974638,6.64941127,2536.8,2536.7,1.10345661]
[1747733976341,9.38941127,2536.8,2536.7,1.10345661]
[1747733977130,9.38941127,2536.8,2536.7,0.7882]
[1747733977541,9.38941127,2536.8,2536.7,1.59904564]
[1747733978540,10.17758127,2536.8,2536.7,0.81084564]
[1747733978840,10.17758127,2536.8,2536.7,0.64560575]
[1747733979736,2.76804,2536.4,2536.3,0.66665797]
[1747733980141,7.479375,2536.4,2536.3,0.66665797]
[1747733980439,13.661855,2536.4,2535.9,0.00592101]
[1747733980737,0.78854,2535.6,2535.4,0.78858]
[1747733981044,3.24005,2535.5,2535.4,0.78858]
[1747733981435,5.212085,2535.5,2535.4,0.78858]
[1747733982638,5.212085,2535.5,2535.3,1.68602378]
[1747733982940,0.78863,2535.3,2535.2,0.00592101]
[1747733983135,8.71618,2535.3,2535.2,0.00592101]
[1747733983333,10.68837,2535.3,2535.2,0.00592101]
[1747733983937,0.78879,2534.9,2534.7,3.2078]
[1747733984139,3.98775,2534.8,2534.6,0.78883]
[1747733984441,2.008,2534.8,2534.6,0.78883]
[1747733984643,1.97975,2534.7,2534.6,0.78883]
[1747733984835,3.33015,2534.7,2534.6,0.78883]
[1747733985035,5.30281,2534.7,2534.6,0.78883]
[1747733987046,5.96561,2534.7,2534.6,0.78883]
[1747733987540,3.99295,2534.7,2534.6,2.76149]
[1747733987744,2.0132,2534.7,2534.6,2.76149]
[1747733992046,2.09806477,2534.7,2534.6,2.76149]
[1747733993948,2.0132,2534.7,2534.6,2.76149]
[1747733994547,0.6896,2535.1,2535.0,0.78873]
[1747733995039,2.66935,2535.1,2535.0,0.78873]
[1747733995850,3.95045,2535.1,2535.0,0.78873]
[1747733999255,3.26085,2535.1,2535.0,2.76108]
[1747733999552,3.26085,2535.1,2535.0,0.78873]
[1747733999751,1.2811,2535.1,2535.0,2.76108]
[1747734001451,3.2078,2535.3,2535.2,0.78867]
[1747734001647,4.4758,2535.3,2535.2,0.78867]
[1747734001950,8.42774,2535.3,2535.2,0.78867]
[1747734002454,9.21637,2535.3,2535.1,0.78867]
[1747734002655,1.97975,2535.2,2535.1,0.78867]
[1747734002951,3.24165,2535.2,2535.1,0.78867]
[1747734003148,5.21392,2535.2,2535.1,0.78867]
[1747734003854,6.00259,2535.2,2535.0,0.78871]
[1747734004054,2.76848,2535.0,2534.9,0.31551905]
[1747734004354,5.97628,2535.0,2534.9,0.31551905]
[1747734004652,7.948705,2535.0,2534.9,0.31551905]
[1747734005154,10.688705,2535.0,2534.9,0.31551905]
[1747734005352,0.78876,2534.9,2534.8,0.78879]
[1747734005651,5.46801,2534.9,2534.8,0.78879]
[1747734005847,7.440515,2534.9,2534.8,0.78879]
[1747734006053,6.651755,2534.9,2534.8,0.78879]
[1747734006256,4.672005,2534.9,2534.8,0.78879]
[1747734006555,2.6995,2534.9,2534.8,2.761295]
[1747734006850,2.6995,2534.9,2534.8,3.07681405]
[1747734007251,4.672005,2534.9,2534.8,1.10430905]
[1747734007455,7.440515,2534.9,2534.8,0.31551905]
[1747734007962,6.651755,2534.9,2534.8,1.10430905]
[1747734008147,9.391755,2534.9,2534.8,1.10430905]
[1747734008348,10.180515,2534.9,2534.8,1.10430905]
[1747734008546,10.180515,2534.9,2534.8,0.31551905]
[1747734010655,10.180515,2534.9,2534.8,0.56264235]
[1747734011051,10.180515,2534.9,2534.8,1.35143235]
[1747734011756,10.180515,2534.9,2534.8,0.56264235]
[1747734012159,15.180515,2534.9,2534.8,0.56264235]
[1747734012755,15.180515,2534.9,2534.8,1.35143235]
[1747734012954,9.391755,2534.9,2534.8,1.35143235]
[1747734013158,10.180515,2534.9,2534.8,1.35143235]
[1747734013760,10.180515,2534.9,2534.8,0.56264235]
[1747734014057,10.180515,2534.9,2534.8,1.35143235]
[1747734015761,10.180515,2534.9,2534.8,0.56264235]
[1747734016863,10.180515,2534.9,2534.8,1.35143235]
[1747734017159,10.180515,2534.9,2534.8,0.56264235]
[1747734017764,8.20801,2534.9,2534.8,0.56264235]
[1747734018058,10.180515,2534.9,2534.8,0.56264235]
[1747734018857,4.0902,2534.9,2534.8,3.32393735]
[1747734019054,4.0902,2534.9,2534.8,6.53173735]
[1747734019253,1.3502,2534.9,2534.8,9.27173735]
[1747734019454,1.3502,2534.9,2534.8,10.62063735]
[1747734020257,1.3502,2534.9,2534.8,7.88063735]
[1747734020458,1.43506477,2534.9,2534.8,7.88063735]
[1747734020860,1.43506477,2534.9,2534.8,7.63351405]
[1747734021362,1.43506477,2534.9,2534.8,6.28461405]
[1747734021771,6.17607977,2534.9,2534.8,3.52331905]
[1747734021966,6.17607977,2534.9,2534.8,0.31551905]
[1747734022168,8.91607977,2534.9,2534.8,0.31551905]
[1747734022367,8.91607977,2534.9,2534.8,0.81267116]
[1747734023268,12.12387977,2534.9,2534.8,0.81267116]
[1747734023568,12.039015,2534.9,2534.8,0.81267116]
[1747734023965,9.270505,2534.9,2534.8,0.81267116]
[1747734024268,1.3502,2534.9,2534.8,1.10430905]
[1747734024467,1.43506477,2534.9,2534.8,1.10430905]
[1747734024669,4.19632977,2534.9,2534.8,0.31551905]
[1747734024861,4.86512977,2534.9,2534.8,0.31551905]
[1747734025165,6.81636977,2534.9,2534.8,1.10430905]
[1747734025972,6.81636977,2534.9,2534.8,1.43565429]
[1747734026273,4.84386477,2534.9,2534.8,3.40815929]
[1747734026966,4.17506477,2534.9,2534.8,3.40815929]
[1747734027169,1.43506477,2534.9,2534.8,3.40815929]
[1747734027663,1.43506477,2534.9,2534.8,3.07681405]
[1747734028063,1.43506477,2534.9,2534.8,3.71181405]
[1747734029467,1.43506477,2534.9,2534.8,5.66881405]
[1747734029964,0.08486477,2534.9,2534.8,5.66881405]
[1747734032368,0.08486477,2534.9,2534.8,3.71181405]
[1747734033176,2.82486477,2534.9,2534.8,3.71181405]
[1747734033874,2.82486477,2534.9,2534.8,4.20942474]
[1747734034176,4.12736477,2534.9,2534.8,4.20942474]
[1747734034674,6.10711477,2534.9,2534.8,4.20942474]
[1747734034877,6.89587477,2534.9,2534.8,3.57442474]
[1747734035073,8.86837977,2534.9,2534.8,1.60191974]
[1747734035475,8.07961977,2534.9,2534.8,1.60191974]
[1747734036176,8.86837977,2534.9,2534.8,1.60191974]
[1747734036372,12.07617977,2534.9,2534.8,0.81312974]
[1747734036675,17.07617977,2534.9,2534.8,0.81312974]
[1747734037474,12.07617977,2534.9,2534.8,0.81312974]
[1747734037675,11.991315,2534.9,2534.8,0.81312974]
[1747734038282,11.991315,2534.9,2534.8,0.31551905]
[1747734038575,11.991315,2534.9,2534.8,1.10430905]
[1747734038778,12.07617977,2534.9,2534.8,1.10430905]
[1747734038979,11.28741977,2534.9,2534.8,1.10430905]
[1747734041475,8.86837977,2534.9,2534.8,1.10430905]
[1747734042773,8.07961977,2534.9,2534.8,1.10430905]
[1747734043284,8.86837977,2534.9,2534.8,1.10430905]
[1747734045478,6.88862977,2534.9,2534.8,1.10430905]
[1747734045682,8.86837977,2534.9,2534.8,1.10430905]
[1747734047682,6.89587477,2534.9,2534.8,1.10430905]
[1747734047899,4.12736477,2534.9,2534.8,1.10430905]
[1747734048085,4.12736477,2534.9,2534.8,1.35327373]
[1747734048885,4.91612477,2534.9,2534.8,3.32577873]
[1747734049187,4.12736477,2534.9,2534.8,3.32577873]
[1747734049390,4.12736477,2534.9,2534.8,1.35327373]
[1747734049589,4.12736477,2534.9,2534.8,3.07681405]
[1747734049792,4.12736477,2534.9,2534.8,1.10430905]
[1747734050492,4.91612477,2534.9,2534.8,1.10430905]
[1747734052491,4.91612477,2534.9,2534.8,0.31551905]
[1747734052696,12.07617977,2534.9,2534.8,0.31551905]
[1747734053393,12.07617977,2534.9,2534.8,0.56458557]
[1747734053595,0.78882,2534.7,2534.6,0.33202853]
[1747734053891,2.76857,2534.7,2534.6,0.33202853]
[1747734054086,7.48123,2534.7,2534.6,0.33202853]
[1747734055396,0.78885,2534.6,2534.5,0.78888]
[1747734055593,2.7686,2534.6,2534.5,0.78888]
[1747734055790,4.74133501,2534.6,2534.5,0.78888]
[1747734056189,7.48133501,2534.6,2534.5,0.78888]
[1747734057494,6.69248501,2534.6,2534.5,0.78888]
[1747734057692,2.74,2534.6,2534.5,2.761615]
[1747734057894,4.0008,2534.6,2534.5,4.782715]
[1747734058194,2.09145645,2535.0,2534.9,0.78876]
[1747734058394,4.07120645,2535.0,2534.9,0.78876]
[1747734058692,6.04363145,2535.0,2534.9,0.78876]
[1747734059194,7.480905,2535.0,2534.9,0.78876]
[1747734059491,4.712425,2535.0,2534.9,0.78876]
[1747734059694,6.065425,2535.0,2534.9,0.78876]
[1747734060295,6.065425,2535.0,2534.9,1.41346]
[1747734060296,4.114155,2535.0,2534.9,1.41346]
[1747734060505,1.353,2535.0,2534.9,1.41346]
[1747734060693,3.2078,2535.2,2535.1,0.7887]
[1747734060994,0.78873,2535.0,2534.9,0.6247]
[1747734061196,0.78873,2535.0,2534.9,1.41345]
[1747734061389,0.78873,2535.0,2534.9,2.597125]
[1747734061693,0.78873,2535.0,2534.7,1.1207043]
[1747734061694,0.78879,2534.8,2534.7,1.1207043]
[1747734062190,4.61305,2534.9,2534.7,1.1207043]
[1747734062191,2.6333,2534.9,2534.8,0.78879]
[1747734062395,3.26005,2534.9,2534.8,0.78879]
[1747734062587,3.99648,2535.2,2535.0,0.78871]
[1747734062904,1.97975,2535.1,2534.8,1.3576]
[1747734063094,1.97975,2535.1,2534.8,1.85521069]
[1747734063296,5.968865,2535.2,2534.8,1.85521069]
[1747734063297,3.2078,2535.2,2534.8,5.79960569]
[1747734063594,3.2078,2535.2,2535.1,0.7887]
[1747734064195,3.2078,2535.2,2535.1,2.76097]
[1747734065493,7.94849,2535.2,2535.1,0.7887]
[1747734066904,7.94849,2535.2,2535.1,1.10421547]
[1747734067298,7.15982,2535.2,2535.1,1.10421547]
[1747734068306,3.95202,2535.2,2535.1,1.10421547]
[1747734068500,0.6287,2535.3,2535.2,0.78867]
[1747734068795,0.00592101,2535.5,2535.2,0.78867]
[1747734068999,0.00592101,2535.5,2535.4,0.7886]
[1747734069400,0.00592101,2535.5,2535.4,2.760635]
[1747734071906,0.00592101,2535.5,2535.4,3.07615047]
[1747734072405,0.00592101,2535.5,2535.4,3.70075047]
[1747734072607,0.79449101,2535.5,2535.4,3.70075047]
[1747734073304,1.98567101,2535.5,2535.4,1.72871547]
[1747734074004,6.01187601,2535.5,2535.4,1.72871547]
[1747734074606,6.01187601,2535.5,2535.4,1.10411547]
[1747734075203,8.75187601,2535.5,2535.4,1.10411547]
[1747734075405,8.75187601,2535.5,2535.4,0.31551547]
[1747734076407,8.75187601,2535.5,2535.4,1.10411547]
[1747734076703,5.98355601,2535.5,2535.4,1.10411547]
[1747734076900,4.01152101,2535.5,2535.4,1.10411547]
[1747734077100,1.27152101,2535.5,2535.4,3.07615047]
[1747734077407,0.00592101,2535.5,2535.4,6.96215047]
[1747734077699,0.00592101,2535.5,2535.4,7.59705047]
[1747734078303,1.30272645,2536.1,2536.0,0.78842]
[1747734078605,6.54984645,2536.1,2536.0,0.78842]
[1747734078906,4.57827645,2536.1,2536.0,0.78842]
[1747734079103,2.59852645,2536.1,2536.0,2.75998999]
[1747734079504,2.59852645,2536.1,2536.0,3.07550546]
[1747734080003,3.38691645,2536.1,2536.0,2.28708546]
[1747734080209,7.33823645,2536.1,2536.0,0.31551547]
[1747734080503,10.54603645,2536.1,2536.0,0.31551547]
[1747734081205,11.98331,2536.1,2536.0,0.31551547]
[1747734085213,11.98331,2536.1,2536.0,1.10393547]
[1747734086312,6.00737,2536.1,2536.0,1.10393547]
[1747734086614,4.0358,2536.1,2536.0,6.28330546]
[1747734087214,1.2958,2536.1,2536.0,3.07550546]
[1747734087605,1.2958,2536.1,2536.0,2.28708546]
[1747734087804,6.03551,2536.1,2536.0,0.31551547]
[1747734088211,8.77551,2536.1,2536.0,0.31551547]
[1747734089617,8.77552,2536.1,2536.0,0.78842]
[1747734089818,0.78843,2536.0,2535.9,0.78843]
[1747734090020,2.06263,2536.0,2535.9,0.78843]
[1747734090211,8.75403,2536.0,2535.9,0.78843]
[1747734090406,0.78845,2535.9,2535.8,0.79437101]
[1747734090722,7.9322,2535.9,2535.8,0.00592101]
[1747734090907,9.903925,2535.9,2535.8,0.79440101]
[1747734091106,12.643925,2535.9,2535.8,0.79440101]
[1747734092521,12.643925,2535.9,2535.8,1.10983742]
[1747734092721,12.643925,2535.9,2535.8,0.32135742]
[1747734092927,17.643925,2535.9,2535.8,0.32135742]
[1747734093419,12.643925,2535.9,2535.8,0.32135742]
[1747734094025,17.643925,2535.9,2535.8,0.32135742]
[1747734094222,12.643925,2535.9,2535.8,0.32135742]
[1747734094627,12.72878977,2535.9,2535.8,0.00592101]
[1747734095028,12.72878977,2535.9,2535.8,0.79440101]
[1747734095228,8.73253977,2535.9,2535.8,0.79440101]
[1747734095527,9.436125,2535.9,2535.8,0.79440101]
[1747734095922,12.643925,2535.9,2535.8,0.79440101]
[1747734097527,11.855475,2535.9,2535.8,0.79440101]
[1747734097826,12.643925,2535.9,2535.8,0.79440101]
[1747734098025,12.643925,2535.9,2535.8,1.10983122]
[1747734098219,9.903925,2535.9,2535.8,1.10983122]
[1747734098719,9.98878977,2535.9,2535.8,1.10983122]
[1747734099629,9.903925,2535.9,2535.8,0.32135122]
[1747734100123,12.643925,2535.9,2535.8,0.32135122]
[1747734100327,12.643925,2535.9,2535.8,1.10983122]
[1747734100731,12.643925,2535.9,2535.8,0.32135122]
[1747734101231,12.643925,2535.9,2535.8,1.10983122]
[1747734101232,1.2742,2535.9,2535.8,1.10983122]
[1747734101530,1.2742,2535.9,2535.8,3.08155622]
[1747734102827,1.2742,2535.9,2535.8,5.07195622]
[1747734103030,3.8718,2536.2,2536.1,0.78839]
[1747734103231,4.4854,2536.2,2536.1,0.78839]
[1747734103431,3.2078,2536.2,2536.1,2.75988]
[1747734103632,3.2078,2536.2,2536.1,3.07531021]
[1747734103831,3.2078,2536.2,2536.1,3.76351021]
[1747734104035,4.4854,2536.2,2536.1,3.76351021]
[1747734104934,1.2776,2536.2,2536.1,3.76351021]
[1747734105240,3.21372101,2536.3,2536.2,0.78835]
[1747734105434,0.00592101,2536.3,2536.2,2.03975]
[1747734105744,1.30272645,2536.8,2536.7,0.7882]
[1747734106238,1.30272645,2536.8,2536.7,2.75922499]
[1747734107032,1.30272645,2536.8,2536.7,3.40647592]
[1747734107440,1.30552101,2537.0,2536.9,0.78814]
[1747734107942,5.25614102,2537.0,2536.9,0.78814]
[1747734108145,6.02527101,2537.0,2536.9,2.75901]
[1747734109360,6.81338101,2537.0,2536.9,2.75901]
[1747734109542,6.81338101,2537.0,2536.8,1.2514]
[1747734109543,7.99614102,2537.0,2536.7,0.7882]
[1747734109741,1.97975,2536.8,2536.7,0.7882]
[1747734110044,0.7882,2536.7,2536.6,1.77213072]
[1747734110248,6.72195,2536.7,2536.6,1.77213072]
[1747734110449,6.72195,2536.7,2536.6,3.74323572]
[1747734110750,6.72195,2536.7,2536.6,1.77213072]
[1747734110949,7.51015,2536.7,2536.6,1.77213072]
[1747734111448,6.72195,2536.7,2536.6,1.77213072]
[1747734111652,6.72195,2536.7,2536.6,1.75562522]
[1747734111948,7.51015,2536.7,2536.6,1.75562522]
[1747734112143,6.741255,2536.7,2536.6,1.75562522]
[1747734112349,6.741255,2536.7,2536.6,0.31531522]
[1747734113142,9.481255,2536.7,2536.6,0.31531522]
[1747734114449,9.481255,2536.7,2536.6,1.10354522]
[1747734114846,9.481255,2536.7,2536.6,0.31531522]
[1747734115154,0.78825,2536.6,2536.3,1.97081]
[1747734115346,4.03393,2536.5,2536.4,0.7883]
[1747734115747,6.00519,2536.5,2536.4,0.7883]
[1747734116155,8.74519,2536.5,2536.4,0.7883]
[1747734116353,7.95691,2536.5,2536.4,0.7883]
[1747734116750,2.74,2536.5,2536.4,10.96735999]
[1747734116949,0.00592101,2537.0,2536.9,0.78814]
[1747734117351,0.00592101,2537.0,2536.9,2.75901]
[1747734117751,0.79403101,2537.0,2536.9,1.97087]
[1747734117953,0.87889578,2537.0,2536.9,1.97087]
[1747734118153,1.53509578,2537.0,2536.9,0.78814]
[1747734118455,4.27509578,2537.0,2536.9,0.78814]
[1747734118656,0.78814,2536.9,2536.8,0.6391]
[1747734118852,3.36155,2536.9,2536.6,0.78821]
[1747734119053,2.76795,2536.7,2536.6,0.78824]
[1747734119253,0.78824,2536.6,2536.5,0.6665]
[1747734119553,0.78827,2536.5,2536.4,0.49761069]
[1747734119754,3.43192,2536.5,2536.4,0.49761069]
[1747734119944,6.78498,2536.5,2536.4,0.49761069]
[1747734120150,9.52498,2536.5,2536.4,0.49761069]
[1747734121159,10.70743,2536.5,2536.0,2.35453984]
[1747734121455,0.78839,2536.1,2536.0,2.35453984]
[1747734121860,0.78839,2536.1,2536.0,3.53769983]
[1747734122260,0.78839,2536.1,2536.0,4.32611983]
[1747734122552,0.78839,2536.1,2536.0,2.21909983]
[1747734122763,0.78839,2536.1,2536.0,0.31538286]
[1747734122951,4.73971,2536.1,2536.0,0.31538286]
[1747734123352,7.47971,2536.1,2536.0,0.31538286]
[1747734126161,7.56457477,2536.1,2536.0,0.31538286]
[1747734128070,2.82486477,2536.1,2536.0,3.07537285]
[1747734128257,2.82486477,2536.1,2536.0,4.98337285]
[1747734129166,2.09427,2536.2,2536.1,0.78839]
[1747734129368,2.76814,2536.1,2536.0,0.5629127]
[1747734129774,4.73971,2536.1,2536.0,0.5629127]
[1747734130068,4.82457477,2536.1,2536.0,0.5629127]
[1747734130366,7.56457477,2536.1,2536.0,1.3513327]
[1747734130564,7.56457477,2536.1,2536.0,0.5629127]
[1747734132363,7.56457477,2536.1,2536.0,1.3513327]
[1747734132667,2.82486477,2536.1,2536.0,3.32290269]
[1747734133167,0.78835,2536.3,2536.0,2.53448269]
[1747734133375,2.7681,2536.3,2536.2,0.78835]
[1747734133667,0.78835,2536.3,2536.2,0.78835]
[1747734133866,2.759765,2536.3,2536.2,0.78835]
[1747734134162,0.6273,2536.4,2536.3,0.78833]
[1747734134368,2.60705,2536.4,2536.3,0.78833]
[1747734134570,5.366685,2536.4,2536.3,0.78833]
[1747734134769,4.578385,2536.4,2536.2,1.61508286]
[1747734135061,0.78833,2536.3,2536.2,2.40342286]
[1747734135269,0.78833,2536.3,2536.2,1.61508286]
[1747734135466,0.78833,2536.3,2536.2,2.40344286]
[1747734135869,0.78833,2536.3,2536.2,4.37485786]
[1747734136466,1.41562,2536.4,2536.3,0.78833]
[1747734136666,3.39537,2536.4,2536.3,0.78833]
[1747734138070,3.4039,2536.5,2536.4,0.7883]
[1747734138071,2.74,2536.5,2536.4,0.7883]
[1747734138676,2.74,2536.5,2536.4,4.08165999]
[1747734139173,0.78818,2536.8,2536.4,4.08165999]
[1747734139378,0.7882,2536.7,2536.6,0.78822]
[1747734140177,0.7882,2536.7,2536.6,2.21863484]
[1747734140475,0.7882,2536.7,2536.6,0.24752984]
[1747734140774,0.7882,2536.7,2536.6,1.03575984]
[1747734141778,0.7882,2536.8,2536.7,0.78818]
[1747734141975,1.97975,2536.8,2536.7,0.7882]
[1747734142169,3.950775,2536.8,2536.7,2.7932]
[1747734142376,4.738945,2536.8,2536.7,0.7882]
[1747734143079,7.478945,2536.8,2536.7,0.7882]
[1747734144178,7.478945,2536.8,2536.7,1.3511127]
[1747734144379,7.478945,2536.8,2536.7,0.5629127]
[1747734144978,6.690775,2536.8,2536.7,1.3511127]
[1747734145872,2.74,2536.8,2536.7,3.32213769]
[1747734146179,0.00592101,2537.0,2536.9,0.78814]
[1747734146380,0.00592101,2537.0,2536.9,3.99594]
[1747734146581,0.00592101,2537.0,2536.9,5.96681]
[1747734146879,0.00592101,2537.0,2536.9,6.61841]
[1747734147979,0.00592101,2537.0,2536.9,7.1813227]
[1747734148182,1.30492101,2537.0,2536.9,3.9735227]
[1747734148380,6.04365102,2537.0,2536.9,0.5629127]
[1747734149375,5.25554102,2537.0,2536.9,1.3510527]
[1747734149581,7.99554102,2537.0,2536.9,1.3510527]
[1747734150683,8.78365102,2537.0,2536.9,1.3510527]
[1747734151681,7.99554102,2537.0,2536.9,1.3510527]
[1747734152373,2.74592101,2537.0,2536.9,3.3219227]
[1747734152874,2.74592101,2537.0,2536.9,4.0048227]
[1747734153080,2.74592101,2537.0,2536.9,4.6314227]
[1747734153384,0.00592101,2537.0,2536.9,4.6314227]
[1747734153771,0.00592101,2537.0,2536.9,3.9485227]
[1747734153976,0.00592101,2537.0,2536.9,3.3219227]
[1747734154277,7.48465102,2537.0,2536.9,0.5629127]
[1747734154470,7.56951579,2537.0,2536.9,0.5629127]
[1747734154985,6.78140579,2537.0,2536.9,1.3510527]
[1747734155176,7.56951579,2537.0,2536.9,1.3510527]
[1747734155377,9.61701579,2537.0,2536.9,1.3510527]
[1747734155577,9.61701579,2537.0,2536.9,1.10352286]
[1747734155778,8.82890579,2537.0,2536.9,1.10352286]
[1747734155979,9.61701579,2537.0,2536.9,0.31538286]
[1747734158988,14.61701579,2537.0,2536.9,0.31538286]
[1747734159584,0.78817,2536.8,2536.7,1.03572984]
[1747734159777,5.97572,2536.8,2536.7,0.7882]
[1747734159974,7.946745,2536.8,2536.7,0.7882]
[1747734160188,11.935745,2536.8,2536.7,0.7882]
[1747734161492,11.935745,2536.8,2536.7,1.10352553]
[1747734163985,8.73362868,2536.8,2536.7,1.10352553]
[1747734164192,11.94142868,2536.8,2536.7,0.31532553]
[1747734166796,16.94142868,2536.8,2536.7,5.53e-06]
[1747734167899,11.94142868,2536.8,2536.7,5.53e-06]
[1747734168893,13.12375868,2536.8,2536.4,0.78829]
[1747734169100,0.7883,2536.4,2536.3,1.03583984]
[1747734169898,2.0511,2536.4,2536.3,3.00717483]
[1747734170293,4.7911,2536.4,2536.3,3.00717483]
[1747734170499,8.742185,2536.4,2536.3,0.24752984]
[1747734171899,0.78836,2536.2,2536.1,0.78839]
[1747734172094,0.78839,2536.1,2536.0,0.24752984]
[1747734172398,0.78839,2536.1,2536.0,1.03592984]
[1747734172399,4.72374,2536.1,2536.0,1.03592984]
[1747734172601,1.3159,2536.1,2536.0,3.00749983]
[1747734172794,1.3159,2536.1,2536.0,4.28729983]
[1747734173301,2.10429,2536.1,2536.0,3.49889983]
[1747734173494,6.05561,2536.1,2536.0,0.24752984]
[1747734174194,8.79561,2536.1,2536.0,0.24752984]
[1747734175198,6.05561,2536.1,2536.0,0.24752984]
[1747734175998,9.26341,2536.1,2536.0,0.24752984]
[1747734176199,12.00341,2536.1,2536.0,0.24752984]
[1747734176897,17.00341,2536.1,2536.0,0.24752984]
[1747734177488,12.00341,2536.1,2536.0,0.24752984]
[1747734179406,8.79561,2536.1,2536.0,0.24752984]
[1747734179599,12.00341,2536.1,2536.0,0.24752984]
[1747734179800,8.79561,2536.1,2536.0,0.24752984]
[1747734180098,12.00341,2536.1,2536.0,0.24752984]
[1747734182000,10.02366,2536.1,2536.0,0.89062984]
[1747734183403,10.02366,2536.1,2536.0,0.24752984]
[1747734184303,12.00341,2536.1,2536.0,0.24752984]
[1747734186410,0.78845,2535.9,2535.8,0.00592101]
[1747734186610,2.7682,2535.9,2535.8,0.00592101]
[1747734186811,4.739925,2535.9,2535.8,0.00592101]
[1747734187006,6.023725,2535.9,2535.8,0.00592101]
[1747734187212,8.763725,2535.9,2535.8,0.00592101]
[1747734189314,6.783975,2535.9,2535.8,0.00592101]
[1747734189616,8.763725,2535.9,2535.8,0.00592101]
[1747734190413,11.971525,2535.9,2535.8,0.00592101]
[1747734191813,0.78848,2535.8,2535.7,5.94754899]
[1747734192017,4.01673,2535.8,2535.7,5.94754899]
[1747734192317,0.78858,2535.5,2535.4,0.6499]
[1747734192515,3.99638,2535.5,2535.4,8.4759]
[1747734192811,5.968415,2535.5,2535.4,8.4759]
[1747734193010,7.216915,2535.5,2535.4,8.4759]
[1747734193211,9.956915,2535.5,2535.4,8.4759]
[1747734194210,10.630915,2535.5,2535.4,8.4759]
[1747734195923,10.630915,2535.5,2535.4,0.6499]
[1747734196223,10.630915,2535.5,2535.4,8.4769]
[1747734197523,10.630915,2535.5,2535.4,0.6499]
[1747734197823,10.630915,2535.5,2535.4,8.4609]
[1747734198324,7.98488,2535.5,2535.4,8.4609]
[1747734198517,7.98488,2535.5,2535.4,9.24951]
[1747734200624,7.98488,2535.5,2535.4,8.4609]
[1747734200825,9.956915,2535.5,2535.4,0.6499]
[1747734201123,10.04177977,2535.5,2535.4,8.4609]
[1747734201525,10.04177977,2535.5,2535.4,8.77639165]
[1747734201713,8.06974477,2535.5,2535.4,8.77639165]
[1747734201918,10.04177977,2535.5,2535.4,8.77639165]
[1747734203729,10.04177977,2535.5,2535.4,0.96539165]
[1747734203926,10.04177977,2535.5,2535.4,8.77639165]
[1747734204327,8.06974477,2535.5,2535.4,8.77639165]
[1747734204822,8.06974477,2535.5,2535.4,10.04789165]
[1747734205230,7.98488,2535.5,2535.4,10.04789165]
[1747734205730,7.98488,2535.5,2535.4,2.48442149]
[1747734206029,7.98488,2535.5,2535.4,11.08403149]
[1747734206232,7.98488,2535.5,2535.4,10.29542149]
[1747734208231,8.06974477,2535.5,2535.4,10.29542149]
[1747734208432,4.86194477,2535.5,2535.4,10.29542149]
[1747734208930,8.06974477,2535.5,2535.4,10.29542149]
[1747734209531,8.06974477,2535.5,2535.4,2.48442149]
[1747734209734,8.06974477,2535.5,2535.4,10.29542149]
[1747734211323,7.98488,2535.5,2535.4,10.29542149]
[1747734212332,8.06974477,2535.5,2535.4,10.29542149]
[1747734213330,7.98488,2535.5,2535.4,10.29542149]
[1747734213534,7.98488,2535.5,2535.4,13.05606649]